bitfinex/quotes_BTCUSD_20240729
["timestamp","ask_amount","ask_price","bid_price","bid_amount"]
[1722235297563,1.1548865,69896.0,69895.0,0.25175191]
[1722235297781,1.15592173,69896.0,69895.0,0.25175191]
[1722235297995,1.15492137,69896.0,69895.0,0.25175191]
[1722235298214,1.01020005,69896.0,69895.0,0.25175191]
[1722235298977,1.10765925,69896.0,69895.0,0.25175191]
[1722235299198,1.33657025,69896.0,69895.0,0.25175191]
[1722235299412,1.31411105,69896.0,69895.0,0.25175191]
[1722235299959,1.40131974,69896.0,69895.0,0.25175191]
[1722235300087,1.30596491,69896.0,69895.0,0.25175191]
[1722235300517,1.40326695,69896.0,69895.0,0.25175191]
[1722235300938,1.30596491,69896.0,69895.0,0.25175191]
[1722235301139,1.40251254,69896.0,69895.0,0.25175191]
[1722235301380,1.54561193,69896.0,69895.0,0.25175191]
[1722235301638,1.56294905,69896.0,69895.0,0.25175191]
[1722235302065,1.68594905,69896.0,69895.0,0.25175191]
[1722235302222,1.63694905,69896.0,69895.0,0.25175191]
[1722235302386,1.6594696,69896.0,69895.0,0.25175191]
[1722235302581,1.44897266,69896.0,69895.0,0.25175191]
[1722235302988,1.45093535,69896.0,69895.0,0.25175191]
[1722235303197,1.27202435,69896.0,69895.0,0.25175191]
[1722235303591,1.124258,69896.0,69895.0,0.25175191]
[1722235303794,1.10179788,69896.0,69895.0,0.25175191]
[1722235305229,1.10179788,69896.0,69895.0,0.31785191]
[1722235305469,1.10486107,69896.0,69895.0,0.31785191]
[1722235305665,1.00878359,69896.0,69895.0,0.31785191]
[1722235305867,0.77987259,69896.0,69895.0,0.31785191]
[1722235306179,0.435306,69896.0,69895.0,0.31785191]
[1722235306371,0.55492895,69896.0,69895.0,0.31785191]
[1722235307156,0.78383995,69896.0,69895.0,0.31785191]
[1722235307732,0.78283995,69896.0,69895.0,0.31785191]
[1722235309031,1.01175095,69896.0,69895.0,0.31785191]
[1722235309256,0.974928,69896.0,69895.0,0.31785191]
[1722235309467,1.00632177,69896.0,69895.0,0.31785191]
[1722235309698,1.10459552,69896.0,69895.0,0.31785191]
[1722235310275,1.00632177,69896.0,69895.0,0.31785191]
[1722235310521,1.10482317,69896.0,69895.0,0.31785191]
[1722235311359,1.10482317,69896.0,69895.0,0.25175191]
[1722235311581,1.12242063,69896.0,69895.0,0.25175191]
[1722235311764,1.14487981,69896.0,69895.0,0.25175191]
[1722235312063,1.35725023,69896.0,69895.0,0.25175191]
[1722235312271,1.14587981,69896.0,69895.0,0.25175191]
[1722235312524,1.09688858,69896.0,69895.0,0.25175191]
[1722235312723,1.1448241,69896.0,69895.0,0.25175191]
[1722235313023,1.12696348,69896.0,69895.0,0.25175191]
[1722235313226,1.14482406,69896.0,69895.0,0.25175191]
[1722235313981,1.14382406,69896.0,69895.0,0.25175191]
[1722235314392,1.16595483,69896.0,69895.0,0.25175191]
[1722235315162,1.16569211,69896.0,69895.0,0.25175191]
[1722235315651,1.10424158,69896.0,69895.0,0.25175191]
[1722235315844,1.12172732,69896.0,69895.0,0.25175191]
[1722235317413,1.12072732,69896.0,69895.0,0.25175191]
[1722235317657,1.12172732,69896.0,69895.0,0.25175191]
[1722235318753,1.12072732,69896.0,69895.0,0.25175191]
[1722235318964,1.12043707,69896.0,69895.0,0.25175191]
[1722235319251,1.12143707,69896.0,69895.0,0.25175191]
[1722235320213,1.12043707,69896.0,69895.0,0.25175191]
[1722235320700,1.26353646,69896.0,69895.0,0.25175191]
[1722235321401,1.245751,69896.0,69895.0,0.25175191]
[1722235321577,1.26405799,69896.0,69895.0,0.25175191]
[1722235321797,1.21752879,69896.0,69895.0,0.25175191]
[1722235321996,1.28657883,69896.0,69895.0,0.25175191]
[1722235323178,1.14347944,69896.0,69895.0,0.25175191]
[1722235323570,1.33254587,69896.0,69895.0,0.25175191]
[1722235324025,1.33117076,69896.0,69895.0,0.25175191]
[1722235324249,1.09035782,69896.0,69895.0,0.25175191]
[1722235324453,1.33151528,69896.0,69895.0,0.25175191]
[1722235325487,1.11997517,69896.0,69895.0,0.25175191]
[1722235326884,1.14143531,69896.0,69895.0,0.25175191]
[1722235327101,1.11897517,69896.0,69895.0,0.25175191]
[1722235327472,1.0734294,69896.0,69895.0,0.25175191]
[1722235327671,1.1178775,69896.0,69895.0,0.25175191]
[1722235327889,1.1188775,69896.0,69895.0,0.25175191]
[1722235328555,1.33041408,69896.0,69895.0,0.25175191]
[1722235330549,1.35287422,69896.0,69895.0,0.25175191]
[1722235330756,1.0744294,69896.0,69895.0,0.39635191]
[1722235330961,1.10336623,69896.0,69895.0,0.39635191]
[1722235331301,1.10376065,69896.0,69895.0,0.39635191]
[1722235333088,0.87484965,69896.0,69895.0,0.39635191]
[1722235333507,0.54743725,69896.0,69895.0,0.39635191]
[1722235333783,0.31852625,69896.0,69895.0,0.39635191]
[1722235333935,0.32391271,69896.0,69895.0,0.39635191]
[1722235334138,0.06301886,69896.0,69895.0,0.39635191]
[1722235334343,0.17333014,69896.0,69895.0,0.39635191]
[1722235334539,0.20704785,69896.0,69895.0,0.39635191]
[1722235334939,0.20704785,69896.0,69895.0,0.51080891]
[1722235335198,0.06201886,69896.0,69895.0,0.96863691]
[1722235335406,0.00484,69896.0,69895.0,0.96863691]
[1722235336240,0.00084,69896.0,69895.0,0.96863691]
[1722235336443,0.00084,69896.0,69895.0,0.97363691]
[1722235336817,0.00084,69896.0,69895.0,0.98763691]
[1722235337061,0.00034,69896.0,69895.0,0.98263691]
[1722235338310,0.10763731,69896.0,69895.0,0.98263691]
[1722235338733,0.130095,69896.0,69895.0,0.98263691]
[1722235338934,0.129595,69896.0,69895.0,0.99463691]
[1722235339135,0.10713731,69896.0,69895.0,0.99463691]
[1722235339338,0.1288225,69903.0,69898.0,0.144]
[1722235339538,0.1288225,69903.0,69901.0,0.114446]
[1722235339815,0.1288225,69903.0,69902.0,0.4855]
[1722235340849,0.0828,69904.0,69902.0,0.4192]
[1722235340965,0.656012,69904.0,69903.0,0.0601]
[1722235341165,0.47048775,69904.0,69903.0,0.4016]
[1722235342156,0.46998775,69904.0,69903.0,0.4016]
[1722235342371,0.49244451,69904.0,69903.0,0.4016]
[1722235342540,0.46998775,69904.0,69903.0,0.4016]
[1722235343099,0.38768775,69904.0,69903.0,0.4096]
[1722235343324,0.47048775,69904.0,69903.0,0.4096]
[1722235343674,0.46765157,69904.0,69903.0,0.4096]
[1722235344287,0.46665157,69904.0,69903.0,0.4096]
[1722235344499,0.46765157,69904.0,69903.0,0.4096]
[1722235344721,0.15596657,69904.0,69903.0,0.4096]
[1722235344929,0.23876657,69904.0,69903.0,0.4096]
[1722235345872,0.12432457,69904.0,69903.0,0.4096]
[1722235346000,0.23876657,69904.0,69903.0,0.4096]
[1722235346198,0.04152457,69904.0,69903.0,0.4096]
[1722235346802,0.0380329,69904.0,69903.0,0.4096]
[1722235347024,0.0390329,69904.0,69903.0,0.4096]
[1722235347230,0.0380329,69904.0,69903.0,0.4096]
[1722235348048,0.12863693,69905.0,69903.0,0.4133]
[1722235348248,0.12863693,69905.0,69904.0,0.0638]
[1722235348662,0.12963693,69905.0,69904.0,0.519742]
[1722235348858,0.12863693,69905.0,69904.0,0.4053]
[1722235349059,0.001,69905.0,69904.0,0.519742]
[1722235349260,0.001,69905.0,69904.0,0.4053]
[1722235349659,0.12863693,69906.0,69904.0,0.4053]
[1722235349864,0.001,69905.0,69904.0,0.519742]
[1722235350067,0.001,69905.0,69904.0,0.4093]
[1722235350265,0.12861441,69906.0,69904.0,0.4113]
[1722235350469,0.02345561,69905.0,69904.0,0.4113]
[1722235350675,0.001,69905.0,69904.0,0.4113]
[1722235351275,0.24304574,69906.0,69904.0,0.4113]
[1722235351617,0.24304574,69906.0,69904.0,0.4093]
[1722235352010,0.24304574,69906.0,69904.0,0.4103]
[1722235352398,0.24304574,69906.0,69904.0,0.4063]
[1722235352862,0.001,69905.0,69904.0,0.4063]
[1722235353058,0.114439,69906.0,69904.0,0.4063]
[1722235354052,0.13689469,69906.0,69904.0,0.4063]
[1722235354909,0.001,69905.0,69904.0,0.4063]
[1722235355111,0.13689469,69906.0,69904.0,0.4093]
[1722235355329,0.114439,69906.0,69904.0,0.4093]
[1722235356557,0.21138531,69907.0,69904.0,0.4063]
[1722235356558,0.114441,69905.0,69904.0,0.4063]
[1722235356798,0.114441,69905.0,69904.0,0.4103]
[1722235357186,0.114441,69905.0,69904.0,0.4093]
[1722235357370,0.115441,69905.0,69904.0,0.4093]
[1722235357547,0.115441,69905.0,69904.0,0.4113]
[1722235358741,0.13789681,69905.0,69904.0,0.4073]
[1722235359022,0.115441,69905.0,69904.0,0.4073]
[1722235359649,0.001,69905.0,69904.0,0.4073]
[1722235360739,0.12856073,69907.0,69904.0,0.4073]
[1722235360894,0.001,69905.0,69904.0,0.4103]
[1722235361499,0.001,69905.0,69904.0,0.4083]
[1722235361697,0.001,69905.0,69904.0,0.4053]
[1722235362083,0.114438,69907.0,69904.0,0.4093]
[1722235362361,0.02245557,69905.0,69904.0,0.4093]
[1722235362646,0.114438,69907.0,69904.0,0.4093]
[1722235363921,0.114438,69907.0,69905.0,0.0634]
[1722235364123,0.114438,69907.0,69906.0,0.34149]
[1722235364542,0.1285722,69908.0,69906.0,0.34149]
[1722235364735,0.2430082,69908.0,69906.0,0.34149]
[1722235365253,0.1285722,69908.0,69906.0,0.34149]
[1722235365628,0.114437,69907.0,69906.0,0.34149]
[1722235366041,0.15105329,69908.0,69906.0,0.34149]
[1722235366042,0.26548929,69908.0,69906.0,0.34149]
[1722235366214,0.114437,69907.0,69906.0,0.40239]
[1722235367383,0.24303481,69907.0,69906.0,0.40239]
[1722235368757,0.24303481,69907.0,69906.0,0.40539]
[1722235369121,0.24305812,69907.0,69906.0,0.40539]
[1722235369414,0.24305812,69907.0,69906.0,0.40639]
[1722235369614,0.26552759,69907.0,69906.0,0.40639]
[1722235369814,0.24307194,69907.0,69906.0,0.40539]
[1722235370006,0.24307194,69907.0,69906.0,0.41039]
[1722235370308,0.27948918,69907.0,69906.0,0.41039]
[1722235370513,0.15085424,69907.0,69906.0,0.41039]
[1722235372305,0.114437,69907.0,69906.0,0.41039]
[1722235372483,0.15099785,69907.0,69906.0,0.41039]
[1722235372982,0.17475439,69907.0,69906.0,0.41039]
[1722235373403,0.17345349,69907.0,69906.0,0.41039]
[1722235374113,0.3182587,69907.0,69906.0,0.41039]
[1722235374326,0.29580306,69907.0,69906.0,0.41039]
[1722235374495,0.15099785,69907.0,69906.0,0.41039]
[1722235375409,0.29586436,69907.0,69906.0,0.41039]
[1722235375610,0.14956134,69907.0,69906.0,0.41039]
[1722235378169,0.14956134,69907.0,69906.0,0.411314]
[1722235378340,0.03512434,69907.0,69906.0,0.411314]
[1722235378881,0.17038392,69907.0,69906.0,0.411314]
[1722235379217,0.05594692,69907.0,69906.0,0.411314]
[1722235379419,0.05751962,69907.0,69906.0,0.411314]
[1722235380247,0.17195662,69907.0,69906.0,0.411314]
[1722235380631,0.05596542,69907.0,69906.0,0.494114]
[1722235380832,0.17141836,69907.0,69906.0,0.494114]
[1722235381058,0.05698136,69907.0,69906.0,0.494114]
[1722235381304,0.02347155,69907.0,69906.0,0.494114]
[1722235381600,0.05814548,69907.0,69906.0,0.494114]
[1722235382098,0.05814548,69907.0,69906.0,0.608553]
[1722235382240,0.03568987,69907.0,69906.0,0.494114]
[1722235383081,0.03467393,69907.0,69906.0,0.494114]
[1722235383296,0.03467393,69907.0,69906.0,0.608553]
[1722235383536,0.00084,69908.0,69907.0,0.166437]
[1722235383798,0.04298332,69912.0,69911.0,0.1]
[1722235384030,0.13700172,69928.0,69919.0,0.62209]
[1722235384228,0.06522868,69920.0,69919.0,1.416066]
[1722235384433,0.00084,69920.0,69919.0,1.416066]
[1722235385173,0.00084,69920.0,69919.0,1.366066]
[1722235385174,0.02328874,69920.0,69919.0,1.366066]
[1722235386255,0.06616782,69920.0,69919.0,1.366066]
[1722235386571,0.04371908,69920.0,69919.0,1.366066]
[1722235386773,0.00084,69920.0,69919.0,1.366066]
[1722235387638,0.00084,69920.0,69919.0,1.13723]
[1722235387974,0.00084,69920.0,69919.0,1.366066]
[1722235389144,0.00084,69920.0,69919.0,0.839594]
[1722235389562,0.00084,69920.0,69919.0,1.06843]
[1722235389897,0.00084,69920.0,69919.0,0.839594]
[1722235390093,0.02328875,69920.0,69919.0,0.839594]
[1722235390593,0.02328875,69920.0,69919.0,0.610758]
[1722235391203,0.06611403,69920.0,69919.0,0.610758]
[1722235391638,0.04366528,69920.0,69919.0,0.624758]
[1722235391941,0.15808128,69920.0,69919.0,0.49634]
[1722235392170,0.00084,69920.0,69919.0,0.41774]
[1722235392369,0.57292,69920.0,69919.0,0.35544]
[1722235392629,0.964952,69920.0,69919.0,0.35544]
[1722235393046,0.99383799,69920.0,69919.0,0.35544]
[1722235393221,0.99383799,69920.0,69919.0,0.36944]
[1722235393426,0.964952,69920.0,69919.0,0.36944]
[1722235393628,0.68744167,69920.0,69919.0,0.35544]
[1722235393964,0.83200382,69920.0,69919.0,0.35544]
[1722235394105,0.68744167,69920.0,69919.0,0.35544]
[1722235394669,0.68744167,69920.0,69919.0,0.34144]
[1722235394869,0.68744167,69920.0,69919.0,0.35544]
[1722235395010,0.70989379,69920.0,69919.0,0.35544]
[1722235395244,0.68744167,69920.0,69919.0,0.35544]
[1722235395443,0.68744167,69920.0,69919.0,0.34144]
[1722235395638,0.68844167,69920.0,69919.0,0.34144]
[1722235396237,0.68744167,69920.0,69919.0,0.34144]
[1722235396436,0.68944167,69920.0,69919.0,0.34144]
[1722235396595,0.432188,69920.0,69919.0,0.34144]
[1722235396802,0.46194692,69920.0,69919.0,0.34144]
[1722235397762,0.45994692,69920.0,69919.0,0.34144]
[1722235398141,0.46094692,69920.0,69919.0,0.34144]
[1722235398552,0.48239843,69920.0,69919.0,0.34144]
[1722235398911,0.45994692,69920.0,69919.0,0.34244]
[1722235400043,0.46050455,69920.0,69919.0,0.34244]
[1722235400487,0.46050494,69920.0,69919.0,0.34244]
[1722235401795,0.46050494,69920.0,69919.0,0.456858]
[1722235401796,0.12934092,69920.0,69919.0,0.456858]
[1722235401992,0.00084,69920.0,69919.0,0.685694]
[1722235402850,0.00084,69920.0,69919.0,0.91453]
[1722235403465,0.10790937,69920.0,69919.0,0.91753]
[1722235403767,0.10790937,69920.0,69919.0,0.91453]
[1722235404004,0.10790937,69920.0,69919.0,1.00343]
[1722235404177,0.10790937,69920.0,69919.0,1.00943]
[1722235404557,0.10790937,69920.0,69919.0,1.382866]
[1722235404760,0.00084,69920.0,69919.0,1.382866]
[1722235405656,0.00084,69920.0,69919.0,1.376866]
[1722235405825,0.00084,69920.0,69919.0,1.382866]
[1722235406032,0.00084,69920.0,69919.0,1.432866]
[1722235406441,0.00084,69920.0,69919.0,1.425866]
[1722235406643,0.00084,69920.0,69919.0,1.389866]
[1722235406841,0.02328807,69920.0,69919.0,1.389866]
[1722235407047,0.02328807,69920.0,69919.0,1.375866]
[1722235407288,0.02328807,69920.0,69919.0,1.383866]
[1722235407715,0.00084,69920.0,69919.0,1.383866]
[1722235408076,0.00084,69920.0,69919.0,1.369866]
[1722235408502,0.00084,69920.0,69919.0,1.397866]
[1722235409885,0.00084,69920.0,69919.0,1.315066]
[1722235410926,0.02328787,69920.0,69919.0,1.315066]
[1722235411330,0.00084,69920.0,69919.0,1.315066]
[1722235411528,0.00084,69920.0,69919.0,1.08623]
[1722235412008,0.043628,69920.0,69919.0,1.08623]
[1722235412231,0.04362731,69920.0,69919.0,1.08623]
[1722235412612,0.04362718,69920.0,69919.0,0.857394]
[1722235414622,0.06607591,69920.0,69919.0,0.857394]
[1722235414940,0.04362718,69920.0,69919.0,0.857394]
[1722235416926,0.04362718,69920.0,69919.0,1.08623]
[1722235417698,0.02328865,69920.0,69919.0,1.08623]
[1722235417913,0.06607583,69920.0,69919.0,1.08623]
[1722235418835,0.04362718,69920.0,69919.0,1.08623]
[1722235419078,0.06419996,69922.0,69921.0,0.343242]
[1722235419244,0.08559995,69923.0,69921.0,0.570258]
[1722235419446,0.114405,69927.0,69921.0,0.570258]
[1722235419610,0.08561004,69923.0,69922.0,0.114413]
[1722235419816,0.08561004,69923.0,69922.0,0.455833]
[1722235421250,0.10701255,69924.0,69922.0,0.455833]
[1722235421796,0.10703997,69924.0,69922.0,0.455833]
[1722235422024,0.10703997,69924.0,69923.0,0.114411]
[1722235422226,0.12948846,69924.0,69923.0,0.114411]
[1722235422424,0.12948846,69924.0,69923.0,0.455831]
[1722235422823,0.12948846,69924.0,69923.0,0.34142]
[1722235423236,0.12950769,69924.0,69923.0,0.34142]
[1722235423412,0.02244849,69924.0,69923.0,0.34142]
[1722235424069,0.02244849,69924.0,69923.0,0.455831]
[1722235424269,0.02244849,69924.0,69923.0,0.469831]
[1722235424444,0.1081177,69924.0,69923.0,0.469831]
[1722235424666,0.10811829,69924.0,69923.0,0.469831]
[1722235425312,0.02244849,69924.0,69923.0,0.469831]
[1722235425701,0.02244849,69924.0,69923.0,0.35542]
[1722235425900,0.12955365,69924.0,69923.0,0.35542]
[1722235426103,0.02244849,69924.0,69923.0,0.35542]
[1722235426302,0.13685749,69924.0,69923.0,0.35542]
[1722235426714,0.114408,69926.0,69923.0,0.35542]
[1722235426957,0.114409,69924.0,69923.0,0.35542]
[1722235427458,0.114407,69926.0,69923.0,0.35542]
[1722235427585,0.114407,69926.0,69923.0,0.34142]
[1722235427995,0.114407,69926.0,69923.0,0.35542]
[1722235428201,0.114408,69925.0,69923.0,0.34142]
[1722235428436,0.12852619,69927.0,69923.0,0.34142]
[1722235428638,0.12858962,69927.0,69923.0,0.34142]
[1722235428853,0.114406,69926.0,69923.0,0.34142]
[1722235429071,0.24299562,69926.0,69923.0,0.34142]
[1722235429274,0.24299762,69925.0,69923.0,0.34142]
[1722235429477,0.114409,69924.0,69923.0,0.36942]
[1722235429648,0.87147055,69924.0,69923.0,0.36942]
[1722235429852,0.97695335,69924.0,69923.0,0.35542]
[1722235430057,0.83224117,69924.0,69923.0,0.36942]
[1722235430300,0.97695432,69924.0,69923.0,0.36942]
[1722235430546,0.97695403,69924.0,69923.0,0.35542]
[1722235430725,0.76644117,69924.0,69923.0,0.36942]
[1722235430929,0.76644117,69924.0,69923.0,0.35542]
[1722235431410,0.76644117,69924.0,69923.0,0.36542]
[1722235431649,0.8351528,69924.0,69923.0,0.36542]
[1722235431815,0.69044117,69924.0,69923.0,0.36542]
[1722235431959,0.8351528,69924.0,69923.0,0.36542]
[1722235432173,0.69044117,69924.0,69923.0,0.36542]
[1722235432370,0.69044117,69924.0,69923.0,0.35142]
[1722235433014,0.69044117,69924.0,69923.0,0.36542]
[1722235434086,0.71289051,69924.0,69923.0,0.35142]
[1722235434226,0.85760214,69924.0,69923.0,0.35142]
[1722235434422,0.8351528,69924.0,69923.0,0.35142]
[1722235434846,0.658127,69924.0,69923.0,0.35142]
[1722235435187,0.83779894,69924.0,69923.0,0.35142]
[1722235435707,0.69307502,69924.0,69923.0,0.36042]
[1722235437230,0.71552463,69924.0,69923.0,0.36042]
[1722235437429,1.16158718,69924.0,69923.0,0.36042]
[1722235437697,1.38216927,69924.0,69923.0,0.36042]
[1722235437841,1.37161388,69924.0,69923.0,0.36042]
[1722235438144,1.36288294,69924.0,69923.0,0.36042]
[1722235438727,1.36492469,69924.0,69923.0,0.34142]
[1722235439093,1.37092469,69924.0,69923.0,0.34242]
[1722235439520,1.27038114,69924.0,69923.0,0.34142]
[1722235439866,1.33819582,69924.0,69923.0,0.34142]
[1722235439979,1.34419582,69924.0,69923.0,0.34342]
[1722235440182,1.24661373,69924.0,69923.0,0.34342]
[1722235440386,1.34419214,69924.0,69923.0,0.34342]
[1722235440590,0.87437291,69924.0,69923.0,0.34342]
[1722235440815,0.86937826,69924.0,69923.0,0.34342]
[1722235441067,0.89838324,69924.0,69923.0,0.34342]
[1722235441768,0.89538324,69924.0,69923.0,0.34242]
[1722235442058,0.89838324,69924.0,69923.0,0.34242]
[1722235442234,0.87593198,69924.0,69923.0,0.34242]
[1722235442617,0.87893198,69924.0,69923.0,0.34242]
[1722235443001,0.56731298,69924.0,69923.0,0.40442]
[1722235443201,0.33849398,69924.0,69923.0,0.40442]
[1722235443457,0.4880784,69924.0,69923.0,0.40442]
[1722235443635,0.41070618,69924.0,69923.0,0.40442]
[1722235443812,0.04285883,69924.0,69923.0,0.40442]
[1722235444015,0.04285883,69924.0,69923.0,0.517831]
[1722235444235,0.13464464,69924.0,69923.0,0.40342]
[1722235444438,0.03385883,69924.0,69923.0,0.40342]
[1722235444644,0.03485883,69924.0,69923.0,0.40342]
[1722235444846,0.12964877,69924.0,69923.0,0.40342]
[1722235445043,0.12864744,69924.0,69923.0,0.40342]
[1722235445269,0.03886862,69924.0,69923.0,0.40342]
[1722235445468,0.06931805,69924.0,69923.0,0.41242]
[1722235445699,0.06931805,69924.0,69923.0,0.40442]
[1722235445880,0.06931805,69924.0,69923.0,0.747654]
[1722235446048,0.02244943,69924.0,69923.0,0.756654]
[1722235446247,0.02244943,69924.0,69923.0,0.535831]
[1722235446248,0.15110673,69924.0,69923.0,0.535831]
[1722235446470,0.15210673,69924.0,69923.0,0.535831]
[1722235446692,0.15211601,69924.0,69923.0,0.535831]
[1722235446867,0.12966658,69924.0,69923.0,0.535831]
[1722235447072,0.001,69924.0,69923.0,0.764654]
[1722235447273,0.12967532,69924.0,69923.0,0.764654]
[1722235448280,0.03903436,69924.0,69923.0,0.535831]
[1722235448485,0.03903436,69924.0,69923.0,0.42142]
[1722235449211,0.06148371,69924.0,69923.0,0.42142]
[1722235449364,0.06069992,69924.0,69923.0,0.42142]
[1722235449771,0.0592873,69924.0,69923.0,0.42142]
[1722235450149,0.03683795,69924.0,69923.0,0.42142]
[1722235451442,0.03683795,69924.0,69923.0,0.535831]
[1722235452390,0.03683795,69924.0,69923.0,0.764654]
[1722235452565,0.03683795,69924.0,69923.0,0.993477]
[1722235452980,0.001,69924.0,69923.0,0.76445204]
[1722235453180,0.03789706,69924.0,69923.0,0.42121804]
[1722235453554,0.06034609,69924.0,69923.0,0.42121804]
[1722235454522,0.06034609,69924.0,69923.0,0.53562904]
[1722235454708,0.03789706,69924.0,69923.0,0.53562904]
[1722235455628,0.03789706,69924.0,69923.0,0.42121804]
[1722235455839,0.03789706,69924.0,69923.0,0.53562904]
[1722235456037,0.03731802,69924.0,69923.0,0.53562904]
[1722235456661,0.03732311,69924.0,69923.0,0.53562904]
[1722235456872,0.03732311,69924.0,69923.0,0.42121804]
[1722235458079,0.0597723,69924.0,69923.0,0.42121804]
[1722235458495,0.03732311,69924.0,69923.0,0.42121804]
[1722235458698,0.03671187,69924.0,69923.0,0.42121804]
[1722235459296,0.03654041,69924.0,69923.0,0.42121804]
[1722235461583,0.18139708,69924.0,69923.0,0.42121804]
[1722235461711,0.05898972,69924.0,69923.0,0.42121804]
[1722235462327,0.02344931,69924.0,69923.0,0.42121804]
[1722235462529,0.0590186,69924.0,69923.0,0.42121804]
[1722235462949,0.15097829,69924.0,69923.0,0.42121804]
[1722235464141,0.15104925,69924.0,69923.0,0.42121804]
[1722235464570,0.60868725,69924.0,69923.0,0.35921804]
[1722235464771,0.75354876,69924.0,69923.0,0.35921804]
[1722235465174,0.83624876,69924.0,69923.0,0.35921804]
[1722235465555,0.655747,69924.0,69923.0,0.35921804]
[1722235465755,0.83406901,69924.0,69923.0,0.35921804]
[1722235466210,0.85357097,69924.0,69923.0,0.35921804]
[1722235467732,0.83112151,69924.0,69923.0,0.35921804]
[1722235468324,0.83109348,69924.0,69923.0,0.35921804]
[1722235468687,0.68242115,69924.0,69923.0,0.35921804]
[1722235468847,0.6824223,69924.0,69923.0,0.35921804]
[1722235469385,0.82729917,69924.0,69923.0,0.35921804]
[1722235470204,0.1420843,69924.0,69923.0,0.42371804]
[1722235470415,0.393353,69924.0,69923.0,0.42371804]
[1722235470664,0.622172,69924.0,69923.0,0.42371804]
[1722235470901,0.5997223,69924.0,69923.0,0.35921804]
[1722235472850,0.3709033,69924.0,69923.0,0.35921804]
[1722235474162,0.16453385,69924.0,69923.0,0.35921804]
[1722235475005,0.3709033,69924.0,69923.0,0.35921804]
[1722235475229,0.37027699,69924.0,69923.0,0.35921804]
[1722235475874,0.37027689,69924.0,69923.0,0.35921804]
[1722235478451,0.34043255,69924.0,69923.0,0.35921804]
[1722235478591,0.37027386,69924.0,69923.0,0.35921804]
[1722235480382,0.37027386,69924.0,69923.0,0.36014204]
[1722235480629,0.14229486,69924.0,69923.0,0.36014204]
[1722235481599,0.37111386,69924.0,69923.0,0.36014204]
[1722235482074,0.39356348,69924.0,69923.0,0.36014204]
[1722235483268,0.37111386,69924.0,69923.0,0.36014204]
[1722235483912,0.37111386,69924.0,69923.0,0.44014204]
[1722235484115,0.114408,69925.0,69924.0,0.02244962]
[1722235484316,0.343224,69925.0,69924.0,0.36405962]
[1722235484461,0.09414,69928.0,69924.0,0.36405962]
[1722235484661,0.114406,69926.0,69924.0,0.36405962]
[1722235485103,0.114408,69925.0,69924.0,0.36405962]
[1722235485484,0.228813,69926.0,69924.0,0.37105962]
[1722235485686,0.115408,69925.0,69924.0,0.37105962]
[1722235486307,0.114408,69925.0,69924.0,0.36405962]
[1722235486503,0.02244997,69925.0,69924.0,0.36405962]
[1722235486702,0.02244997,69925.0,69924.0,0.37005962]
[1722235487113,0.13685797,69925.0,69924.0,0.36405962]
[1722235487342,0.02244997,69925.0,69924.0,0.36905962]
[1722235487557,0.02244997,69925.0,69924.0,0.43095962]
[1722235487756,0.114408,69925.0,69924.0,0.42595962]
[1722235488116,0.114408,69925.0,69924.0,0.43395962]
[1722235488551,0.115408,69925.0,69924.0,0.44095962]
[1722235490212,0.344224,69925.0,69924.0,0.41851]
[1722235490737,0.47307108,69925.0,69924.0,0.41851]
[1722235490950,0.49552093,69925.0,69924.0,0.41851]
[1722235491167,0.47307108,69925.0,69924.0,0.41851]
[1722235491622,0.47314279,69925.0,69924.0,0.41851]
[1722235492346,0.24432679,69925.0,69924.0,0.41851]
[1722235492499,0.47314279,69925.0,69924.0,0.41851]
[1722235492667,0.47314279,69925.0,69924.0,0.35661]
[1722235494171,0.39706326,69925.0,69924.0,0.35661]
[1722235495071,0.92990596,69925.0,69924.0,0.35661]
[1722235495261,1.15955198,69925.0,69924.0,0.35661]
[1722235495600,1.15388584,69925.0,69924.0,0.35661]
[1722235496006,0.81473561,69925.0,69924.0,0.35661]
[1722235496614,1.04355161,69925.0,69924.0,0.35661]
[1722235497164,0.81473561,69925.0,69924.0,0.35661]
[1722235497808,0.81333822,69925.0,69924.0,0.35661]
[1722235498075,0.81281386,69925.0,69924.0,0.35661]
[1722235498420,0.8352646,69925.0,69924.0,0.35661]
[1722235498823,0.81281386,69925.0,69924.0,0.35661]
[1722235499694,0.87793524,69925.0,69924.0,0.35661]
[1722235499895,0.85413059,69925.0,69924.0,0.35661]
[1722235500253,0.5522863,69925.0,69924.0,0.35661]
[1722235500459,0.50606492,69925.0,69924.0,0.35661]
[1722235500881,0.27724892,69925.0,69924.0,0.35661]
[1722235501086,0.26867721,69925.0,69924.0,0.35661]
[1722235501244,0.49749321,69925.0,69924.0,0.35661]
[1722235501447,0.72630921,69925.0,69924.0,0.35661]
[1722235501875,0.64360921,69925.0,69924.0,0.35661]
[1722235502077,0.74875934,69925.0,69924.0,0.35661]
[1722235502270,0.87767609,69925.0,69924.0,0.35661]
[1722235502506,0.77291906,69925.0,69924.0,0.35661]
[1722235502909,0.82291906,69925.0,69924.0,0.35661]
[1722235503465,0.72630921,69925.0,69924.0,0.35661]
[1722235503667,0.74960757,69925.0,69924.0,0.35661]
[1722235503868,0.82810757,69925.0,69924.0,0.35661]
[1722235504020,0.82820705,69925.0,69924.0,0.35661]
[1722235505041,1.10702305,69925.0,69924.0,0.35661]
[1722235505946,1.05702305,69925.0,69924.0,0.35661]
[1722235506633,1.05668168,69925.0,69924.0,0.35661]
[1722235506815,1.07913281,69925.0,69924.0,0.35661]
[1722235508940,1.05668168,69925.0,69924.0,0.35661]
[1722235509806,1.05623897,69925.0,69924.0,0.35661]
[1722235511590,1.07869014,69925.0,69924.0,0.35661]
[1722235513025,1.0782823,69925.0,69924.0,0.35661]
[1722235513225,1.10583113,69925.0,69924.0,0.35661]
[1722235513464,1.05583113,69925.0,69924.0,0.35661]
[1722235513711,1.05583071,69925.0,69924.0,0.35661]
[1722235513900,1.05583071,69925.0,69924.0,0.357534]
[1722235514230,0.97817071,69925.0,69924.0,0.357534]
[1722235515847,0.97835532,69925.0,69924.0,0.357534]
[1722235516166,0.49833321,69925.0,69924.0,0.357534]
[1722235516399,0.54623087,69925.0,69924.0,0.420234]
[1722235517372,0.77504687,69925.0,69924.0,0.420234]
[1722235517772,0.75259585,69925.0,69924.0,0.420234]
[1722235518087,0.89759758,69925.0,69924.0,0.420234]